fUSD/lending_fUSD_20240406
["ID","MTS","AMOUNT","RATE_DAILY","PERIOD"]
[321699548,1712406657530,-500.0,0.00022399,2]
[321699549,1712406657539,-500.0,0.00022399,2]
[321699550,1712406657548,-500.0,0.00022399,2]
[321699551,1712406657557,-500.0,0.00022399,2]
[321699552,1712406657566,-500.0,0.00022399,2]
[321699553,1712406657575,-500.0,0.00022399,2]
[321699554,1712406657585,-500.0,0.00022399,2]
[321699555,1712406657594,-500.0,0.00022399,2]
[321699556,1712406657604,-500.0,0.00022399,2]
[321699557,1712406657613,-500.0,0.00022399,2]
[321699558,1712406657627,-500.0,0.00022399,2]
[321699559,1712406657636,-571.23,0.00022399,2]
[321699560,1712406657646,-571.23,0.00022399,2]
[321699561,1712406657656,-571.23,0.00022399,2]
[321699562,1712406657666,-500.0,0.00022399,2]
[321699563,1712406657675,-500.0,0.00022399,2]
[321699564,1712406657685,-648.16,0.00022399,2]
[321699565,1712406657695,-500.0,0.00022399,2]
[321699566,1712406657704,-500.0,0.00022399,2]
[321699567,1712406657714,-500.0,0.00022399,2]
[321699568,1712406657726,-500.0,0.00022399,2]
[321699569,1712406657735,-500.0,0.00022399,2]
[321699570,1712406657744,-500.0,0.00022399,2]
[321699571,1712406657754,-500.0,0.00022399,2]
[321699572,1712406657763,-500.0,0.00022399,2]
[321699573,1712406657773,-500.0,0.00022399,2]
[321699574,1712406657782,-500.0,0.00022399,2]
[321699575,1712406657791,-500.0,0.00022399,2]
[321699576,1712406657801,-500.0,0.00022399,2]
[321699577,1712406657811,-389.86,0.00022399,2]
[321699578,1712406657820,-500.0,0.00022399,2]
[321699579,1712406657829,-500.0,0.00022399,2]
[321699580,1712406657838,-500.0,0.00022399,2]
[321699581,1712406657847,-500.0,0.00022399,2]
[321699582,1712406657857,-161.22,0.00022399,2]
[321699583,1712406657867,-454.05,0.00022399,2]
[321699584,1712406657876,-500.0,0.00022399,2]
[321699585,1712406657885,-500.0,0.00022399,2]
[321699586,1712406657895,-500.0,0.00022399,2]
[321699587,1712406657905,-500.0,0.00022399,2]
[321699588,1712406657914,-500.0,0.00022399,2]
[321699589,1712406657924,-500.0,0.00022399,2]
[321699590,1712406657933,-500.0,0.00022399,2]
[321699591,1712406657943,-500.0,0.00022399,2]
[321699592,1712406657952,-368.11,0.00022399,2]
[321699593,1712406657961,-500.0,0.00022399,2]
[321699594,1712406657971,-500.0,0.00022399,2]
[321699595,1712406657980,-591.42,0.00022399,2]
[321699596,1712406657989,-500.0,0.00022399,2]
[321699597,1712406657998,-500.0,0.00022399,2]
[321699598,1712406658008,-500.0,0.00022399,2]
[321699599,1712406658017,-500.0,0.00022399,2]
[321699600,1712406658027,-500.0,0.00022399,2]
[321699601,1712406658036,-500.0,0.00022399,2]
[321699602,1712406658046,-500.0,0.00022399,2]
[321699603,1712406658055,-500.0,0.00022399,2]
[321699604,1712406658064,-500.0,0.00022399,2]
[321699605,1712406658073,-625.98,0.00022399,2]
[321699606,1712406658081,-625.98,0.00022399,2]
[321699607,1712406658090,-625.98,0.00022399,2]
[321699608,1712406658099,-500.0,0.00022399,2]
[321699609,1712406658108,-500.0,0.00022399,2]
[321699610,1712406658117,-500.0,0.00022399,2]
[321699611,1712406658126,-500.0,0.00022399,2]
[321699612,1712406658135,-583.07,0.00022399,2]
[321699613,1712406658144,-616.37,0.00022399,2]
[321699614,1712406658154,-448.65493296,0.00022399,2]
[321699615,1712406658462,-602.97523458,0.00022398,2]
[321699616,1712406658472,-167.71506704,0.00022399,2]
[321699617,1712406658482,-616.37,0.00022399,2]
[321699618,1712406658491,-618.73,0.00022399,2]
[321699619,1712406658502,-618.73,0.00022399,2]
[321699620,1712406658511,-618.73,0.00022399,2]
[321699621,1712406658520,-500.0,0.00022399,2]
[321699622,1712406658530,-500.0,0.00022399,2]
[321699623,1712406658540,-500.0,0.00022399,2]
[321699624,1712406658550,-500.0,0.00022399,2]
[321699625,1712406658560,-500.0,0.00022399,2]
[321699626,1712406658570,-625.0,0.00022399,2]
[321699627,1712406658579,-625.0,0.00022399,2]
[321699628,1712406658589,-625.0,0.00022399,2]
[321699629,1712406658598,-500.0,0.00022399,2]
[321699630,1712406658608,-500.0,0.00022399,2]
[321699631,1712406658618,-500.0,0.00022399,2]
[321699632,1712406658628,-500.0,0.00022399,2]
[321699633,1712406658637,-500.0,0.00022399,2]
[321699634,1712406658647,-500.0,0.00022399,2]
[321699635,1712406658657,-500.0,0.00022399,2]
[321699636,1712406658667,-500.0,0.00022399,2]
[321699637,1712406658676,-500.0,0.00022399,2]
[321699638,1712406658686,-500.0,0.00022399,2]
[321699639,1712406658695,-500.0,0.00022399,2]
[321699640,1712406658704,-500.0,0.00022399,2]
[321699641,1712406658715,-500.0,0.00022399,2]
[321699642,1712406658726,-500.0,0.00022399,2]
[321699643,1712406658735,-500.0,0.00022399,2]
[321699644,1712406658745,-500.0,0.00022399,2]
[321699645,1712406658754,-500.0,0.00022399,2]
[321699646,1712406658764,-500.0,0.00022399,2]
[321699647,1712406658773,-1156.19,0.00022399,2]
[321699648,1712406658783,-1156.19,0.00022399,2]
[321699649,1712406658792,-1156.19,0.00022399,2]
[321699650,1712406658801,-500.0,0.00022399,2]
[321699651,1712406658812,-500.0,0.00022399,2]
[321699652,1712406658822,-500.0,0.00022399,2]
[321699653,1712406658831,-500.0,0.00022399,2]
[321699654,1712406658841,-500.0,0.00022399,2]
[321699655,1712406658850,-500.0,0.00022399,2]
[321699656,1712406658859,-500.0,0.00022399,2]
[321699657,1712406658868,-500.0,0.00022399,2]
[321699658,1712406658878,-541.39,0.00022399,2]
[321699659,1712406658887,-500.0,0.00022399,2]
[321699660,1712406658896,-500.0,0.00022399,2]
[321699661,1712406658907,-298.13,0.00022399,2]
[321699662,1712406658916,-500.0,0.00022399,2]
[321699663,1712406658925,-500.0,0.00022399,2]
[321699664,1712406658934,-500.0,0.00022399,2]
[321699665,1712406658943,-500.0,0.00022399,2]
[321699666,1712406658952,-500.0,0.00022399,2]
[321699667,1712406658961,-391.61,0.00022399,2]
[321699668,1712406658971,-2520.9,0.00022399,2]
[321699669,1712406658980,-2520.9,0.00022399,2]
[321699670,1712406658989,-500.0,0.00022399,2]
[321699671,1712406658998,-2520.9,0.00022399,2]
[321699672,1712406659008,-500.0,0.00022399,2]
[321699673,1712406659018,-500.0,0.00022399,2]
[321699674,1712406659026,-500.0,0.00022399,2]
[321699675,1712406659036,-500.0,0.00022399,2]
[321699676,1712406659045,-500.0,0.00022399,2]
[321699677,1712406659054,-500.0,0.00022399,2]
[321699678,1712406659063,-500.0,0.00022399,2]
[321699679,1712406659072,-500.0,0.00022399,2]
[321699680,1712406659080,-500.0,0.00022399,2]
[321699681,1712406659089,-500.0,0.00022399,2]
[321699682,1712406659098,-500.0,0.00022399,2]
[321699683,1712406659107,-610.24,0.00022399,2]
[321699684,1712406659117,-500.0,0.00022399,2]
[321699685,1712406659126,-560.26,0.00022399,2]
[321699686,1712406659135,-500.0,0.00022399,2]
[321699687,1712406659144,-500.0,0.00022399,2]
[321699688,1712406659155,-500.0,0.00022399,2]
[321699689,1712406659164,-500.0,0.00022399,2]
[321699690,1712406659173,-500.0,0.00022399,2]
[321699691,1712406659182,-500.0,0.00022399,2]
[321699692,1712406659191,-500.0,0.00022399,2]
[321699693,1712406659200,-500.0,0.00022399,2]
[321699694,1712406659210,-500.0,0.00022399,2]
[321699695,1712406659219,-500.0,0.00022399,2]
[321699696,1712406659229,-500.0,0.00022399,2]
[321699697,1712406659238,-500.0,0.00022399,2]
[321699698,1712406659247,-205.81,0.00022399,2]
[321699699,1712406659257,-307.27,0.00022399,2]
[321699700,1712406659267,-500.0,0.00022399,2]
[321699701,1712406659277,-500.0,0.00022399,2]
[321699702,1712406659287,-500.0,0.00022399,2]
[321699703,1712406659298,-500.0,0.00022399,2]
[321699704,1712406659307,-395.53,0.00022399,2]
[321699705,1712406659317,-500.0,0.00022399,2]
[321699706,1712406659327,-500.0,0.00022399,2]
[321699707,1712406659336,-562.25,0.00022399,2]
[321699708,1712406659346,-500.0,0.00022399,2]
[321699709,1712406659355,-500.0,0.00022399,2]
[321699710,1712406659365,-500.0,0.00022399,2]
[321699711,1712406659374,-500.0,0.00022399,2]
[321699712,1712406659384,-500.0,0.00022399,2]
[321699713,1712406659393,-500.0,0.00022399,2]
[321699714,1712406659404,-456.12,0.00022399,2]
[321699715,1712406659413,-500.0,0.00022399,2]
[321699716,1712406659422,-500.0,0.00022399,2]
[321699717,1712406659432,-500.0,0.00022399,2]
[321699718,1712406659441,-482.28,0.00022399,2]
[321699719,1712406659450,-500.0,0.00022399,2]
[321699720,1712406659459,-500.0,0.00022399,2]
[321699721,1712406659468,-372.88,0.00022399,2]
[321699722,1712406659477,-500.0,0.00022399,2]
[321699723,1712406659486,-500.0,0.00022399,2]
[321699724,1712406659496,-500.0,0.00022399,2]
[321699725,1712406659505,-500.0,0.00022399,2]
[321699726,1712406659514,-500.0,0.00022399,2]
[321699727,1712406659524,-500.0,0.00022399,2]
[321699728,1712406659534,-212.57,0.00022399,2]
[321699729,1712406659543,-340.84,0.00022399,2]
[321699730,1712406659552,-500.0,0.00022399,2]
[321699731,1712406659561,-500.0,0.00022399,2]
[321699732,1712406659569,-500.0,0.00022399,2]
[321699733,1712406659578,-500.0,0.00022399,2]
[321699734,1712406659587,-500.0,0.00022399,2]
[321699735,1712406659596,-500.0,0.00022399,2]
[321699736,1712406659605,-500.0,0.00022399,2]
[321699737,1712406659614,-500.0,0.00022399,2]
[321699738,1712406659622,-339.28,0.00022399,2]
[321699739,1712406659632,-500.0,0.00022399,2]
[321699740,1712406659641,-500.0,0.00022399,2]
[321699741,1712406659650,-500.0,0.00022399,2]
[321699742,1712406659659,-500.0,0.00022399,2]
[321699743,1712406659668,-500.0,0.00022399,2]
[321699744,1712406659677,-560.76,0.00022399,2]
[321699745,1712406659685,-203.46,0.00022399,2]
[321699746,1712406659694,-500.0,0.00022399,2]
[321699747,1712406659703,-500.0,0.00022399,2]
[321699748,1712406659711,-500.0,0.00022399,2]
[321699749,1712406659721,-500.0,0.00022399,2]
[321699750,1712406659733,-500.0,0.00022399,2]
[321699751,1712406659742,-219.65,0.00022399,2]
[321699752,1712406659751,-500.0,0.00022399,2]
[321699753,1712406659906,-500.0,0.00022399,2]
[321699754,1712406659915,-399.97181432,0.000224,2]
[321699755,1712406659924,-124393.02087632,0.000224,3]
[321699756,1712406732371,100000.0,0.00021,2]
[321699757,1712406834699,168.74,0.00017144,2]
[321699759,1712406967152,5800.0,0.00018686,2]
[321699760,1712406994578,5946.28,0.00021,2]
[321699761,1712407072187,473.24,0.0001911,2]
[321699762,1712407097593,169.55226304,0.00020995,2]
[321699763,1712407193835,257.26678763,0.0002089,30]
[321699764,1712407279386,4572.49,0.00020983,2]
[321699767,1712407388885,151.0,0.00021,2]
[321699768,1712407400544,151.0,0.00021,2]
[321699770,1712407411402,151.0,0.00021,2]
[321699773,1712407565343,449.57,0.00019133,2]
[321699776,1712407690923,-207.17268662,0.00021005,2]
[321699777,1712407690943,-1474.27948074,0.00021006,2]
[321699778,1712407690964,-1240.92917042,0.00021007,2]
[321699779,1712407691775,210.0107731,0.00021004,2]
[321699780,1712407696720,855.5434642,0.00029998,120]
[321699787,1712407787635,1450.0,0.00021,3]
[321699788,1712407801783,158.6251042,0.00020912,2]
[321699789,1712407808743,9472.41889907,0.00027,30]
[321699808,1712407831838,-207.28883958,0.00021012,2]
[321699810,1712407831847,-369.79476801,0.00021012,2]
[321699812,1712407831859,-291.454993,0.00021012,2]
[321699816,1712407831890,-567.31647294,0.00021012,2]
[321699818,1712407831901,-662.44657426,0.00021012,2]
[321699820,1712407831910,-340.92215135,0.00021012,2]
[321699821,1712407831919,-305.43143604,0.00021013,2]
[321699822,1712407831929,-150.0,0.00021013,2]
[321699823,1712407831938,-898.88336541,0.00021014,2]
[321699824,1712407831956,-700.0,0.00021014,2]
[321699825,1712407832056,-16362.75,0.00021014,2]
[321699826,1712407832170,-17197.15310967,0.00021014,2]
[321699827,1712407832180,-2542.36591961,0.00021015,2]
[321699828,1712407832193,-5325.41771495,0.00021015,2]
[321699909,1712407837845,-2078.77636544,0.00021015,2]
[321699910,1712407837855,-320.49,0.00021019,2]
[321699911,1712407837865,-51.29863423,0.000212,2]
[321699912,1712407837877,-116.35136577,0.000212,2]
[321699913,1712407837886,-420.68,0.00021242,2]
[321699914,1712407837895,-1000.0,0.00021288,2]
[321699915,1712407837905,-181.99,0.00021347,2]
[321699916,1712407837915,-449.57,0.00021397,2]
[321699917,1712407837925,-190.271997,0.000215,2]
[321699918,1712407837935,-166.45,0.00021651,2]
[321699919,1712407837944,-165.67,0.00021661,2]
[321699920,1712407837955,-173.83871507,0.00021817,2]
[321699921,1712407837964,-1394.87111307,0.00021817,2]
[321699922,1712407837973,-378.33,0.00021907,3]
[321699923,1712407837982,-189.16,0.00021907,3]
[321699924,1712407837991,-403.33870218,0.00021907,3]
[321699925,1712407838004,-164.17129782,0.00021907,3]
[321699926,1712407838014,-235.16711843,0.00021915,2]
[321699927,1712407838035,-1764.83288157,0.00021915,2]
[321699928,1712407838045,-2951.21060551,0.00021915,2]
[321699929,1712407838067,-335.24,0.00021915,2]
[321699944,1712407839895,-314.4288001,0.00021915,2]
[321699945,1712407840331,-2486.00782996,0.00021915,2]
[321699946,1712407840445,-256.89893274,0.00021915,2]
[321699947,1712407840719,-8809.801,0.00021915,2]
[321699964,1712407842856,-478.6711612,0.00021914,2]
[321699965,1712407843166,-679.70203805,0.00021914,2]
[321699966,1712407843178,-70.1930347,0.00021914,2]
[321699967,1712407843188,-408.4781265,0.00021915,2]
[321699968,1712407843199,-1144.82674456,0.00021915,2]
[321699969,1712407843215,-262.22000005,0.00021915,2]
[321699998,1712407846025,-1804.1,0.00021915,2]
[321700004,1712407846081,-7267.60092095,0.00021915,2]
[321700014,1712407846203,-27933.20597174,0.00021915,2]
[321700015,1712407846215,-16741.28778744,0.00021916,2]
[321700016,1712407846225,-500.0,0.00021917,2]
[321700017,1712407846234,-500.0,0.00021917,2]
[321700018,1712407846244,-500.0,0.00021917,2]
[321700019,1712407846253,-266.85892939,0.00021917,2]
[321700021,1712407846263,-500.0,0.00021917,2]
[321700023,1712407846272,-500.0,0.00021917,2]
[321700024,1712407846282,-500.0,0.00021917,2]
[321700025,1712407846291,-500.0,0.00021917,2]
[321700026,1712407846300,-500.0,0.00021917,2]
[321700027,1712407846310,-500.0,0.00021917,2]
[321700029,1712407846320,-500.0,0.00021917,2]
[321700030,1712407846329,-500.0,0.00021917,2]
[321700031,1712407846339,-500.0,0.00021917,2]
[321700032,1712407846348,-500.0,0.00021917,2]
[321700033,1712407846358,-500.0,0.00021917,2]
[321700034,1712407846368,-500.0,0.00021917,2]
[321700035,1712407846377,-500.0,0.00021917,2]
[321700036,1712407846387,-500.0,0.00021917,2]
[321700037,1712407846397,-500.0,0.00021917,2]
[321700038,1712407846412,-500.0,0.00021917,2]
[321700039,1712407846423,-500.0,0.00021917,2]
[321700040,1712407846432,-500.0,0.00021917,2]
[321700041,1712407846442,-500.0,0.00021917,2]
[321700042,1712407846453,-500.0,0.00021917,2]
[321700043,1712407846463,-500.0,0.00021917,2]
[321700044,1712407846473,-500.0,0.00021917,2]
[321700045,1712407846482,-500.0,0.00021917,2]
[321700046,1712407846493,-500.0,0.00021917,2]
[321700047,1712407846503,-500.0,0.00021917,2]
[321700048,1712407846513,-500.0,0.00021917,2]
[321700049,1712407846522,-568.73151755,0.00021917,2]
[321700050,1712407846532,-520.58298575,0.00021917,2]
[321700051,1712407846542,-500.0,0.00021917,2]
[321700052,1712407846552,-500.0,0.00021917,2]
[321700053,1712407846562,-500.0,0.00021917,2]
[321700054,1712407846571,-500.0,0.00021917,2]
[321700055,1712407846581,-591.08023379,0.00021917,2]
[321700056,1712407846591,-552.27525651,0.00021917,2]
[321700057,1712407846601,-542.38105745,0.00021917,2]
[321700058,1712407846611,-564.07116756,0.00021917,2]
[321700059,1712407846621,-500.0,0.00021917,2]
[321700060,1712407846631,-500.0,0.00021917,2]
[321700061,1712407846642,-500.0,0.00021917,2]
[321700062,1712407846652,-500.0,0.00021917,2]
[321700063,1712407846663,-500.0,0.00021917,2]
[321700064,1712407846673,-500.0,0.00021917,2]
[321700065,1712407846686,-500.0,0.00021917,2]
[321700066,1712407846696,-500.0,0.00021917,2]
[321700067,1712407846706,-500.0,0.00021917,2]
[321700068,1712407846716,-210.73892894,0.00021917,2]
[321700069,1712407846726,-500.0,0.00021917,2]
[321700070,1712407846736,-631.0,0.00021917,2]
[321700071,1712407846746,-500.0,0.00021917,2]
[321700072,1712407846756,-500.0,0.00021917,2]
[321700073,1712407846766,-300.27421416,0.00021917,2]
[321700074,1712407846776,-500.0,0.00021917,2]
[321700075,1712407846787,-198.76985123,0.00021917,2]
[321700076,1712407846798,-500.0,0.00021917,2]
[321700077,1712407846807,-500.0,0.00021917,2]
[321700078,1712407846817,-500.0,0.00021917,2]
[321700079,1712407846827,-51.73834463,0.00021917,2]
[321700080,1712407868674,1800.0,0.00027,30]
[321700081,1712407869834,17258.98278492,0.00021,2]
[321700082,1712407869860,1760913.27187393,0.00021,2]
[321700083,1712407930668,4541.88016996,0.000199,3]
[321700094,1712408147582,438.34,0.00019383,2]
[321700102,1712408579594,167.65,0.00020997,2]
[321700103,1712408627617,410.913049,0.00020997,2]
[321700104,1712408669189,12334.68914627,0.00020997,2]
[321700106,1712408686088,416.42,0.00019103,2]
[321700107,1712408782535,178.96,0.00016776,2]
[321700111,1712408945173,-640.08300789,0.00021015,2]
[321700112,1712408945194,-3139.85,0.00021016,2]
[321700113,1712408945215,-150.0,0.00021019,2]
[321700114,1712408945237,-2751.0,0.0002102,2]
[321700115,1712408945264,-1206.2,0.0002102,2]
[321700116,1712408945288,-160.24,0.00021045,2]
[321700117,1712408945310,-291.19,0.0002106,2]
[321700118,1712408945335,-159.9,0.00021166,2]
[321700119,1712408945356,-166.36122251,0.00021229,2]
[321700125,1712408956236,-1000.0,0.00021329,2]
[321700126,1712408956258,-416.42,0.00021367,2]
[321700127,1712408956277,-354.5,0.00021367,2]
[321700128,1712408956296,-150.99,0.00021367,2]
[321700129,1712408956314,-239.86,0.00021367,2]
[321700130,1712408956334,-166.36122248,0.00021382,2]
[321700131,1712408956353,-499.99,0.00021418,2]
[321700132,1712408956373,-159.9,0.00021534,2]
[321700133,1712408956394,-166.36122248,0.00021534,2]
[321700134,1712408956414,-166.36122248,0.00021687,2]
[321700135,1712408956433,-1286.87327,0.000217,2]
[321700136,1712408956453,-2043.28,0.00021702,2]
[321700137,1712408956472,-166.36122248,0.0002184,2]
[321700138,1712408956493,-89.47274008,0.00021902,2]
[321700139,1712408959106,-70.42725992,0.00021902,2]
[321700140,1712408959327,-425.50779126,0.00021904,2]
[321700141,1712408959347,-624.05493274,0.00021915,2]
[321700142,1712408959367,-321.81307316,0.00021916,2]
[321700143,1712408959387,-500.0,0.00021917,2]
[321700144,1712408959409,-500.0,0.00021917,2]
[321700145,1712408959432,-528.23828393,0.00021917,2]
[321700146,1712408959454,-500.0,0.00021917,2]
[321700147,1712408959475,-500.0,0.00021917,2]
[321700148,1712408959495,-500.0,0.00021917,2]
[321700149,1712408959516,-527.39636614,0.00021917,2]
[321700150,1712408959539,-500.0,0.00021917,2]
[321700151,1712408959559,-500.0,0.00021917,2]
[321700152,1712408959580,-500.0,0.00021917,2]
[321700153,1712408959601,-500.0,0.00021917,2]
[321700154,1712408959622,-500.0,0.00021917,2]
[321700155,1712408959643,-500.0,0.00021917,2]
[321700156,1712408959663,-500.0,0.00021917,2]
[321700157,1712408959689,-500.0,0.00021917,2]
[321700158,1712408959710,-500.0,0.00021917,2]
[321700159,1712408959730,-500.0,0.00021917,2]
[321700160,1712408959751,-500.0,0.00021917,2]
[321700161,1712408959772,-500.0,0.00021917,2]
[321700162,1712408959792,-500.0,0.00021917,2]
[321700163,1712408959813,-500.0,0.00021917,2]
[321700164,1712408959834,-500.0,0.00021917,2]
[321700165,1712408959854,-500.0,0.00021917,2]
[321700166,1712408959875,-500.0,0.00021917,2]
[321700167,1712408959897,-500.0,0.00021917,2]
[321700168,1712408959917,-500.0,0.00021917,2]
[321700169,1712408959940,-500.0,0.00021917,2]
[321700170,1712408959961,-264.14,0.00021917,2]
[321700171,1712408959985,-500.0,0.00021917,2]
[321700172,1712408960007,-500.0,0.00021917,2]
[321700173,1712408960027,-643.03501338,0.00021917,2]
[321700174,1712408960047,-500.0,0.00021917,2]
[321700175,1712408960068,-500.0,0.00021917,2]
[321700176,1712408960089,-500.0,0.00021917,2]
[321700177,1712408960109,-166.36122248,0.00021993,2]
[321700178,1712408960129,-640.34666034,0.00022,2]
[321700179,1712408960150,-150.0,0.00022,2]
[321700183,1712408977935,160.24,0.00021423,2]
[321700184,1712408990109,558.78739653,0.00022,2]
[321700194,1712409031981,-1000.0,0.00021978,2]
[321700196,1712409032203,-346.6204001,0.00021978,2]
[321700197,1712409032314,-7949.7503892,0.00021978,2]
[321700198,1712409032326,-3279.19999999,0.00021978,2]
[321700230,1712409037996,-260.12038228,0.00021978,2]
[321700241,1712409038053,-701.68499975,0.00021978,2]
[321700248,1712409038111,-877.56755953,0.00021978,2]
[321700254,1712409038167,-1826.35216802,0.00021978,2]
[321700257,1712409038181,-7969.17193469,0.00021978,2]
[321700259,1712409038192,-3131.87472,0.00021978,2]
[321700261,1712409038205,-382.44189404,0.00021978,2]
[321700262,1712409038216,-509.16789362,0.00021978,2]
[321700279,1712409040357,-692.30521405,0.00021978,2]
[321700280,1712409040369,-740.70025052,0.00021978,2]
[321700284,1712409043007,-2927.67975744,0.00021978,2]
[321700299,1712409046411,-15754.81375405,0.00021978,2]
[321700311,1712409204410,1450.0,0.00021,3]
[321700317,1712409355388,454.07,0.00019359,2]
[321700334,1712409806457,4077.53,0.00020454,2]
[321700338,1712409959605,431.36,0.00018519,2]
[321700339,1712409960271,431.36,0.00020783,2]
[321700346,1712410074576,1000.0,0.00020495,2]
[321700350,1712410131379,159.9,0.00020656,2]
[321700352,1712410145175,-640.08300789,0.00021112,2]
[321700353,1712410145197,-155.0,0.00021113,2]
[321700354,1712410145218,-356.66623756,0.00021113,2]
[321700355,1712410145240,-400.0,0.00021114,2]
[321700356,1712410145261,-218.35,0.00021128,2]
[321700357,1712410145283,-218.35,0.00021134,2]
[321700358,1712410145305,-218.35,0.00021139,2]
[321700359,1712410145327,-218.35,0.00021145,2]
[321700360,1712410145348,-218.35,0.0002115,2]
[321700361,1712410145369,-218.35,0.00021156,2]
[321700362,1712410145391,-218.35,0.00021161,2]
[321700363,1712410145411,-218.35,0.00021167,2]
[321700364,1712410145431,-218.35,0.00021172,2]
[321700365,1712410145451,-218.35,0.00021178,2]
[321700366,1712410145471,-218.35,0.00021184,2]
[321700367,1712410145492,-218.35,0.00021189,2]
[321700368,1712410145512,-218.35,0.00021195,2]
[321700369,1712410145532,-218.35,0.000212,2]
[321700370,1712410145552,-218.35,0.00021206,2]
[321700371,1712410145573,-218.35,0.00021211,2]
[321700372,1712410145594,-166.36122248,0.00021212,2]
[321700373,1712410145616,-218.35,0.00021217,2]
[321700374,1712410145637,-218.35,0.00021222,2]
[321700375,1712410145659,-218.35,0.00021228,2]
[321700376,1712410145682,-218.35,0.00021234,2]
[321700377,1712410145703,-150.0,0.00021293,2]
[321700378,1712410145724,-690.84019336,0.00021423,2]
[321700379,1712410145746,-150.0,0.00021706,2]
[321700380,1712410145766,-230.08,0.00021767,2]
[321700381,1712410145794,-2295.8730242,0.0002178,2]
[321700382,1712410145815,-1072.39439,0.0002178,2]
[321700383,1712410145837,-164.11253645,0.00021793,2]
[321700384,1712410145859,-925.32014273,0.0002189,2]
[321700385,1712410145895,-1952.935,0.0002189,2]
[321700386,1712410145916,-433.5024,0.00021915,2]
[321700387,1712410145936,-182.94210018,0.00021976,2]
[321700388,1712410145959,-715.12329073,0.00021976,2]
[321700389,1712410145980,-389.81876723,0.00021976,2]
[321700390,1712410146000,-155.77109055,0.00021976,2]
[321700391,1712410146021,-276.07508247,0.00021976,2]
[321700392,1712410146045,-155.92538713,0.00021976,2]
[321700393,1712410146066,-155.68969577,0.00021976,2]
[321700394,1712410146092,-209.93692521,0.00021976,2]
[321700395,1712410146113,-205.23806172,0.00021976,2]
[321700396,1712410146135,-155.62920748,0.00021976,2]
[321700397,1712410146158,-1925.49375088,0.00021979,2]
[321700398,1712410146179,-79578.99448598,0.0002198,2]
[321700461,1712410232361,-640.08300789,0.00021889,2]
[321700462,1712410232372,-193.87177482,0.0002189,2]
[321700463,1712410232471,-540.42938532,0.0002189,2]
[321700503,1712410238153,-2114.57281515,0.0002189,2]
[321700504,1712410238163,-1112.55789079,0.0002189,2]
[321700505,1712410238265,-1387.44210921,0.0002189,2]
[321700506,1712410238274,-333.76433184,0.0002189,2]
[321700515,1712410240514,-146.03368661,0.0002189,2]
[321700589,1712410243163,-241677.20218155,0.0002189,2]
[321700590,1712410243173,-150.0,0.00021973,2]
[321700591,1712410243183,-180248.926,0.00021974,2]
[321700592,1712410243192,-51301.1267035,0.00021974,2]
[321700593,1712410243202,-354.73508451,0.00021979,2]
[321700594,1712410243214,-9189.85186986,0.0002198,2]
[321700595,1712410243223,-189.16,0.0002198,3]
[321700596,1712410243232,-567.5,0.0002198,3]